Cogmind - Beta 10.2 @@@ ROGUE MODE // 2021.01.08 @ 18:31:35 Player: Ben'n'Dan Result: Destroyed by G-34 Mercenary with Small Laser Performance ------------- Evolutions (0) 0 Regions Visited (1) 200 Robots Destroyed (9) 45 Value Destroyed (162) 162 Prototype IDs (0) 0 Alien Tech Used (0) 0 Bonus (0) 0 TOTAL SCORE: 407 Bonus ------- None Cogmind --------- Core Integrity 0/250 Matter 167/300 Energy 100/100 System Corruption 3% Temperature Cool (6) Movement Flying (40) Location -10/Materials Parts ------- > --- POWER (1) -------- (None) > --- PROPULSION (2) --- Flight Unit > --- UTILITY (2) ------ (None) > --- WEAPON (2) ------- Light Cannon > --- INVENTORY (4) ---- Light Ion Engine Light Ion Engine Peak State ------------ > --- POWER ------------ (None) > --- PROPULSION ------- (None) > --- UTILITY ---------- (None) > --- WEAPON ----------- EM Pulse Gun Small Laser > --- INVENTORY -------- (None) [Rating: 2] Favorites ----------- Power None Propulsion Flight Unit Flight Unit Flight Unit Utility None Weapon Light Cannon Energy Gun EM Pulse Gun Ballistic Cannon Light Cannon Build | -11 -10 ------- Run | Scr Mat Slots Evolved . | . . Power . | . . Propulsion . | . . Utility . | . . Weapon . | . . Parts Attached 5 | 2 3 Power . | . . Engine . | . . Core . | . . Reactor . | . . Propulsion 2 | . 2 Treads . | . . Leg . | . . Wheel . | . . Hover . | . . Flight 2 | . 2 Utility . | . . Device . | . . Storage . | . . Processor . | . . Hackware . | . . Protection . | . . Artifact . | . . Weapon 3 | 2 1 Energy Gun 2 | 2 . Energy Cannon . | . . Ballistic Gun . | . . Ballistic Cannon 1 | . 1 Launcher . | . . Special Weapon . | . . Impact Weapon . | . . Slashing Weapon . | . . Piercing Weapon . | . . Special Melee Weapon . | . . Unidentified Prototypes . | . . Parts Lost 3 | . 3 Power . | . . Propulsion 1 | . 1 Utility . | . . Weapon 2 | . 2 Highest Loss Streak 2 | . 2 Average Slot Usage (%) 19 | . 19 Flight 5 | . 5 Energy Gun 5 | . 5 Ballistic Cannon 8 | . 8 Naked Turns 16 | . 16 Heaviest Build 3 | 3 3 Greatest Support 4 | 3 4 Greatest Overweight (x) . | . . Average Overweight (x) . | . . Largest Inventory Capacity 4 | 4 4 Average Capacity 4 | 4 4 Most Carried 2 | 2 2 Average Carried 1 | 1 2 Final Capacity 4 | 4 4 Final Carried 2 | 2 2 Class Distribution -------------------- 100% | Mutant Dominant Class ---------------- Mutant | -10/Materials Resources | -11 -10 ----------- Run | Scr Mat Matter Collected 220 | 220 . Remotely . | . . Salvage Created 145 | . 145 Parts 12 | . 12 Haulers Intercepted . | . . Recyclers Shooed . | . . Parts Field Recycled . | . . Retrieved Matter . | . . Parts Self-Destructed . | . . Prevented . | . . Kills | -11 -10 ------- Run | Scr Mat Combat Hostiles Destroyed 9 | . 9 Melee 3 | . 3 Cannons 6 | . 6 Classes Destroyed 2 | . 2 Swarmer 6 | . 6 Grunt 3 | . 3 Best Kill Streak 9 | . 9 Combat Bots Only 9 | . 9 Max Kills in Single Turn 1 | . 1 Gunslinging . | . . Exploded . | . . Melee 1 | . 1 Uniques/NPCs Destroyed . | . . Combat | -11 -10 -------- Run | Scr Mat Damage Taken 476 | . 476 Core 250 | . 250 Absorbed by Shields . | . . Core Remaining (%) 100 | 100 . Volleys Fired 33 | . 33 Largest 2 | . 2 Hottest 80 | . 80 Shots Fired 36 | . 36 Gun 9 | . 9 Cannon 27 | . 27 Launcher . | . . Special . | . . Kinetic 27 | . 27 Thermal 3 | . 3 Explosive . | . . Electromagnetic 6 | . 6 Robot Hit Streak 4 | . 4 Robot Miss Streak 3 | . 3 Penetration Max . | . . Secondary Targets . | . . Shots Hit Robots 17 | . 17 Core Hits 13 | . 13 Critical Hits . | . . Critical Kills . | . . Critical Parts Destroyed . | . . Melee Attacks . | . . Impact . | . . Slashing . | . . Piercing . | . . Sneak Attacks . | . . Combat Hostiles . | . . Follow-up Attacks . | . . Damage Inflicted 284 | . 284 Guns 66 | . 66 Cannons 184 | . 184 Explosions . | . . Melee . | . . Ramming 34 | . 34 Kinetic 184 | . 184 Thermal 21 | . 21 Explosive . | . . Electromagnetic 45 | . 45 Impact . | . . Slashing . | . . Piercing . | . . Highest Corruption 3 | . 3 Average Corruption 2 | . 2 Corruption Purged . | . . Effects 1 | . 1 Targeting Errors 1 | . 1 Overload Shots . | . . Overflow Damage . | . . Projectiles . | . . Explosions . | . . Melee . | . . Knockbacks 2 | . 2 Impact . | . . Kinetic 2 | . 2 Secondary . | . . Self-Inflicted Damage 14 | . 14 Shots . | . . Rammed 8 | . 8 Targets Rammed 8 | . 8 Kicked . | . . Crushed . | . . Highest Temperature 10 | . 10 Average Temperature 5 | . 5 Received Heat Transfer 57 | . 57 Siege Activations . | . . Robots Corrupted . | . . Combat Hostiles . | . . Parts Fried 1 | . 1 Impact Corruptions . | . . Robots Melted . | . . Combat Hostiles . | . . Parts Melted . | . . Heat Transferred 50 | . 50 Parts Sabotaged . | . . Parts Stolen . | . . Parts Stripped . | . . Power Chain Reactions . | . . Missiles Intercepted . | . . Alert | -11 -10 ------- Run | Scr Mat Peak Influence 225 | . 225 Initial . | . . Average 83 | . 98 Maximum Alert Level 1 | . 1 Low Security (%) 94 | 100 93 Level 1 5 | . 6 Level 2 . | . . Level 3 . | . . Level 4 . | . . Level 5 . | . . High Security . | . . Max Security . | . . Squads Dispatched 2 | . 2 Investigation . | . . Extermination . | . . Reinforcement 2 | . 2 Assault . | . . Garrison . | . . Intercept . | . . Construction Impeded . | . . Haulers Reinforced . | . . Stealth | -11 -10 --------- Run | Scr Mat Distress Signals . | . . Communications Jammed . | . . Distress Signals . | . . Times Spotted 14 | . 14 Peak Tracking Total 5 | . 5 Tactical Retreats . | . . Traps | -11 -10 ------- Run | Scr Mat Traps Triggered . | . . Indirectly . | . . Trap Hack Attempts . | . . Triggered . | . . Disarmed . | . . Reprogrammed . | . . Reused . | . . Traps Extracted . | . . Installed . | . . Triggered . | . . Machines | -11 -10 ---------- Run | Scr Mat Machines Disabled 1 | . 1 Max in Single Turn 1 | . 1 Machines Sabotaged . | . . Garrisons Compromised . | . . Overloaded Fab Kills . | . . Fab Network Shutdowns . | . . Hacking | -11 -10 --------- Run | Scr Mat Machines Accessed . | . . Terminals . | . . Fabricators . | . . Repair Stations . | . . Recycling Units . | . . Scanalyzers . | . . Garrison Access . | . . Total Hacks . | . . Successful . | . . Failed . | . . Catastrophic . | . . Database Lockouts . | . . Manual . | . . Terminals . | . . Fabricators . | . . Repair Stations . | . . Recycling Units . | . . Scanalyzers . | . . Garrison Access . | . . Terminal Hacks . | . . Fabricator Hacks . | . . Repair Station Hacks . | . . Recycling Unit Hacks . | . . Scanalyzer . | . . Garrison Access Hacks . | . . Unauthorized Hacks . | . . Terminals . | . . Fabricators . | . . Repair Stations . | . . Recycling Units . | . . Scanalyzers . | . . Garrison Access . | . . Data Cores Recovered . | . . Used . | . . Hacking Detections . | . . Full Trace Events . | . . Feedback Events . | . . Feedback Blocked . | . . Robot Schematics Acquired . | . . Robots Built . | . . Matter . | . . Time . | . . Total Robot Build Rating . | . . Part Schematics Acquired . | . . Parts Built . | . . Matter . | . . Time . | . . Total Part Build Rating . | . . Parts Repaired . | . . Time . | . . Parts Recycled . | . . Recycled Matter . | . . Retrieved Matter . | . . Retrieved Components . | . . Parts Scanalyzed . | . . Part Schematics Acquired . | . . Parts Damaged . | . . Bothacking | -11 -10 ------------ Run | Scr Mat Used RIF Installer . | . . Robots Hacked . | . . Non-combat . | . . Combat . | . . Robot Hacks Applied . | . . Relay Couplers Released . | . . Robots Rewired . | . . Allies Hacked . | . . Hacks Repelled . | . . Allies | -11 -10 -------- Run | Scr Mat Total Allies . | . . Largest Group . | . . Highest-Rated Group . | . . Highest-Rated Ally . | . . Total Orders . | . . Ally Attacks . | . . Total Damage . | . . Kills . | . . Allies Corrupted . | . . Allies Melted . | . . Intel | -11 -10 ------- Run | Scr Mat Robot Analysis Total . | . . Derelict Logs Recovered . | . . Drone Launches . | . . Drone Recoveries . | . . Exploration | -11 -10 ------------- Run | Scr Mat Turns Passed 143 | 22 121 Spaces Moved 108 | 35 73 Core 78 | 35 43 Treads . | . . Legs . | . . Wheels . | . . Hover . | . . Flight 30 | . 30 Fastest Speed 40 | 50 40 Average Speed 47 | 50 45 Slowest Speed 50 | 50 50 Overloaded Moves . | . . Propulsion Burnouts . | . . Robots Hopped . | . . Cave-ins Triggered . | . . Exploration Rate (%) 12 | 4 21 Regions Visited 1 Branch Regions . Pre-discovered Areas . | . . Known Exits Taken . | . . Unknown Exits Taken 1 | 1 . Scrap Searched . | . . Spaces Dug . | . . Terrain Destroyed . | . . Melee . | . . Projectile . | . . AOE . | . . Terrain Rammed . | . . Walls Destroyed . | . . Machines Disabled . | . . Actions | -11 -10 --------- Run | Scr Mat Total 161 | 38 123 Wait 6 | . 6 Move 107 | 34 73 Hop . | . . Pick Up 2 | 2 . Fast Attach 5 | 2 3 Attach . | . . Detach . | . . Swap . | . . Drop . | . . Fire 33 | . 33 Melee . | . . Ram 8 | . 8 Kick . | . . Crush . | . . Escape Stasis . | . . Rewire . | . . Trap . | . . Miscellaneous . | . . Route ------- -11/Scrapyard -10/Materials (discovered 1 exit: [*Min]) History --------- Turn | Location | Event 9 | -11/Scrapyard | Discovered new exit (range 15) 23 | -11/Scrapyard | Entered Materials 67 | -10/Materials | Core integrity fell below 50% 83 | -10/Materials | Discovered new exit (range 14) 107 | -10/Materials | Core integrity fell below 20% 144 | -10/Materials | Destroyed by G-34 Mercenary with Small Laser Last Messages --------------- 00079_ U-05 Engineer lays Concrete. 00079_ G-34 Mercenary destroyed. 00081_ U-05 Engineer builds a Wall. 00083_ EXIT=FOUND 00088_ M-13 Machinist fits Backup Power I on U-05 Engineer. 00090_ M-13 Machinist fits Backup Propulsion I on U-05 Engineer. 00091_ Destroyed Flight Unit. 00091_ S-10 Pest knocked back. 00092_ Flight Unit destroyed. 00095_ S-10 Pest destroyed. 00098_ R-06 Scavenger collects Sml. Laser. 00101_ R-06 Scavenger collects Aluminum Leg. 00104_ ALERT: Hostiles spotted, dispatching reinforcements to Terminal M006. 00109_ S-10 Pest destroyed. 00125_ Acquired Flight Unit. 00126_ W-16 Scout knocked back. 00129_ System corrupted: Lgt. Cannon targeting data glitched. 00129_ Machine disabled. 00136_ G-34 Mercenary destroyed. Map ----- +----------------------------------------------------+ | ??????######## # """ #????????????????????? | | ??????# "" """ !#????????????????????? | | ??????# T [%= #????????????????????? | | ??????# * #????????????????????? | | ??????######## #????????????????????? | | ?????????????## %% #????????????????????? | | ??????????????# # ! % #????????????????????? | | ??????????????# # % %##########????????????????? | | ??????????????# % #????????????????? | | ??????????????# [ # #????????????????? | | ??????????????# ## = +????????????????? | | ??????????????# ## ]= #????????????????? | | ??????????????# w ## == ! #????????????????? | | ??????????????# + =#????????????????? | | ??????????????# # #????????????????? | | ??????????????# # =% #??????#?????????? | | ????????????? # ####+########## ???????? | | ????????????? + m%[ ???????? | | ????????????? # = ???????? | | ????????????? # t ???????? | | ????????????"?# ##????????? | | ????????????"?# r ##+#### #?????????? | | ??????????????# a g##???????? #?????????? | | ??????????????# #????????????????????? | | ??????????????# #????????????????????? | | ??????????????# @ #????????????????????? | | ??????????????# #### ##???????????????????? | | ??????????????# #""" #???????????????????? | | ??????????????# ?#" #???????????????????? | | ??????????????# ?#"! #???????????????????? | | ??????????????# ??#"" < #???????????????????? | | ??????????????? ???#"| #???????????????????? | | ?????????????????????#" #???????????????????? | | ??????????????# ????#"" #???????????????????? | | ??????????????# #### ##???????????????????? | | ??????????????# #????????????????????? | | ??????????????# %[ #????????????????????? | | ??????????????# *%%#????????????????????? | | ??????????????# #????????????????????? | | ????????????? ????????????????????? | | ????????????? ????????????????????? | | ????????????? ???????????????????? | | ?????????????? ???????????????????? | | ?????????????? ???????????????????? | | ???????????????!== ########??????????????????? | | ???????????????==* ??????????????????????????? | | ????????????????=* ??????????????????????????? | | ???????????????? ???????????????????????????? | | ?????????????????? ????????????????????????????? | | ?????????????????????????????????????????????????? | +----------------------------------------------------+ Best States ------------- Heat Dissipation 25 Energy Generation 5 Energy Capacity 100 Matter Stores 300 Matter Capacity 300 Sight Range 16 Terrain Scan Density 10 Evasion (%) 50 Item Schematics ----------------- None Robot Schematics ------------------ None Fabricated ------------ Nothing Alien Tech Used ----------------- None Achievements -------------- None Challenges ------------ None Game ------ Seed DisposableLatentCompressor Manual? 0 Play Time 00:03:49 Cumulative 129.3 hours Start 2021.01.08 @ 18:28:59 End 2021.01.08 @ 18:31:35 Sessions 1 Manual Loads 0 Difficulty Rogue Special Mode None Game No. 326 Rogue 318 Adventurer 8 Explorer 0 Win Type - Total 9 Types 6/0/2/1/0/0/0/0/0 Lore% 76 Gallery% 79 Achievement% 59 Wizard Run 0 Options --------- ASCII 0 Keyboard 0 Movement Mouse Keybinds 0 Fullscreen 1 Font 18/SmallcapsGlow Map View 76x50 Tactical HUD 1 Map Filters NONE Filters NONE Steam 1 RUN: 1819142d-22b0-4d43-9b35-bda377fc2613